[Event "Titled Tuesday Blitz June 20 Early 2023"]
[White "Goffredo_Fofi"]
[Black "Kuzmin, Ilya"]
[BlackFideId "4153863"]
[WhiteElo "2512"]
[BlackElo "2093"]
[Result "1-0"]
[Round "9"]
[TimeControl "180+2"]
[Date "2023.06.20"]
[WhiteClock "0:00:16"]
[BlackClock "0:00:00"]
[Board "99"]

1. d4 {[%clk 0:03:00]}  Nf6 {[%clk 0:02:59]} 2. Nf3 {[%clk 0:03:01]}  c5 {[%clk 0:03:00]} 3. d5 {[%clk 0:03:01]}  b5 {[%clk 0:02:56]} 4. Bg5 {[%clk 0:03:00]}  e6 {[%clk 0:02:52]} 5. e4 {[%clk 0:02:47]}  Qa5+ {[%clk 0:02:44]} 6. Nbd2 {[%clk 0:02:28]}  Be7 {[%clk 0:02:17]} 7. d6 {[%clk 0:02:15]}  Bd8 {[%clk 0:02:11]} 8. e5 {[%clk 0:02:15]}  h6 {[%clk 0:01:54]} 9. exf6 {[%clk 0:01:37]}  hxg5 {[%clk 0:01:54]} 10. fxg7 {[%clk 0:01:38]}  Rg8 {[%clk 0:01:54]} 11. Ne5 {[%clk 0:01:39]}  Rxg7 {[%clk 0:01:25]} 12. Qf3 {[%clk 0:01:38]}  Qb6 {[%clk 0:00:53]} 13. Qxa8 {[%clk 0:01:25]}  Qxd6 {[%clk 0:00:43]} 14. Qe4 {[%clk 0:01:04]}  Bf6 {[%clk 0:00:37]} 15. f4 {[%clk 0:01:04]}  gxf4 {[%clk 0:00:36]} 16. Ndf3 {[%clk 0:01:04]}  Qb6 {[%clk 0:00:20]} 17. Qxf4 {[%clk 0:01:00]}  Ke7 {[%clk 0:00:18]} 18. O-O-O {[%clk 0:00:43]}  c4 {[%clk 0:00:17]} 19. Ng4 {[%clk 0:00:39]}  Rg6 {[%clk 0:00:05]} 20. Nxf6 {[%clk 0:00:34]}  Rxf6 {[%clk 0:00:05]} 21. Qg5 {[%clk 0:00:35]}  Nc6 {[%clk 0:00:04]} 22. h4 {[%clk 0:00:19]}  Nb4 {[%clk 0:00:04]} 23. a3 {[%clk 0:00:19]}  Nd5 {[%clk 0:00:00]} 24. h5 {[%clk 0:00:16]} 1-0


[Site "https://www.chess.com"]

[Event "Titled Tuesday Blitz June 20 Early 2023"]
[White "Veiga, Jose Francisco R P Neves"]
[Black "Toncheva, Nadya"]
[WhiteFideId "1930087"]
[BlackFideId "2924056"]
[WhiteElo "2319"]
[BlackElo "2101"]
[Result "1-0"]
[Round "9"]
[TimeControl "180+2"]
[Date "2023.06.20"]
[WhiteClock "0:00:11"]
[BlackClock "0:00:01"]
[Board "103"]

1. c4 {[%clk 0:02:56]}  c5 {[%clk 0:02:59]} 2. Nc3 {[%clk 0:02:54]}  g6 {[%clk 0:03:00]} 3. g3 {[%clk 0:02:54]}  Bg7 {[%clk 0:03:00]} 4. Bg2 {[%clk 0:02:52]}  Nc6 {[%clk 0:03:00]} 5. a3 {[%clk 0:02:50]}  e6 {[%clk 0:02:59]} 6. Rb1 {[%clk 0:02:50]}  Nge7 {[%clk 0:02:58]} 7. b4 {[%clk 0:02:50]}  cxb4 {[%clk 0:02:54]} 8. axb4 {[%clk 0:02:51]}  O-O {[%clk 0:02:53]} 9. b5 {[%clk 0:02:48]}  Nb8 {[%clk 0:02:41]} 10. Bb2 {[%clk 0:02:42]}  a6 {[%clk 0:02:40]} 11. bxa6 {[%clk 0:02:37]}  Rxa6 {[%clk 0:02:35]} 12. Nf3 {[%clk 0:02:34]}  Nbc6 {[%clk 0:02:35]} 13. O-O {[%clk 0:02:34]}  d5 {[%clk 0:02:31]} 14. cxd5 {[%clk 0:02:33]}  exd5 {[%clk 0:02:25]} 15. d3 {[%clk 0:02:33]}  Bg4 {[%clk 0:02:22]} 16. Nb5 {[%clk 0:02:29]}  Qd7 {[%clk 0:02:12]} 17. Bxg7 {[%clk 0:02:27]}  Kxg7 {[%clk 0:02:13]} 18. Qd2 {[%clk 0:02:23]}  Rfa8 {[%clk 0:02:06]} 19. Qc3+ {[%clk 0:02:18]}  Kg8 {[%clk 0:02:04]} 20. Nfd4 {[%clk 0:02:18]}  Nxd4 {[%clk 0:01:56]} 21. Nxd4 {[%clk 0:02:18]}  Nc6 {[%clk 0:01:50]} 22. e3 {[%clk 0:02:11]}  Ra3 {[%clk 0:01:47]} 23. Qc5 {[%clk 0:01:54]}  Rxd3 {[%clk 0:01:38]} 24. Rxb7 {[%clk 0:01:51]}  Qxb7 {[%clk 0:01:32]} 25. Bxd5 {[%clk 0:01:51]}  Rc8 {[%clk 0:00:40]} 26. Nxc6 {[%clk 0:01:40]}  Kg7 {[%clk 0:00:38]} 27. Bg2 {[%clk 0:01:36]}  Qb2 {[%clk 0:00:31]} 28. Qe7 {[%clk 0:01:15]}  Qf6 {[%clk 0:00:30]} 29. Qb7 {[%clk 0:00:56]}  Rd2 {[%clk 0:00:27]} 30. Nd4 {[%clk 0:00:54]}  Rd8 {[%clk 0:00:23]} 31. h3 {[%clk 0:00:54]}  Bc8 {[%clk 0:00:23]} 32. Qc6 {[%clk 0:00:20]}  Ba6 {[%clk 0:00:15]} 33. Qxf6+ {[%clk 0:00:20]}  Kxf6 {[%clk 0:00:15]} 34. Ra1 {[%clk 0:00:20]}  Rd6 {[%clk 0:00:15]} 35. h4 {[%clk 0:00:20]}  h5 {[%clk 0:00:14]} 36. Ra5 {[%clk 0:00:19]}  Rb6 {[%clk 0:00:14]} 37. Ra1 {[%clk 0:00:12]}  Kg7 {[%clk 0:00:14]} 38. Bd5 {[%clk 0:00:09]}  Kf6 {[%clk 0:00:08]} 39. Kg2 {[%clk 0:00:08]}  Bb7 {[%clk 0:00:08]} 40. Bxb7 {[%clk 0:00:08]}  Rxb7 {[%clk 0:00:09]} 41. Ra6+ {[%clk 0:00:08]}  Kg7 {[%clk 0:00:09]} 42. Ra1 {[%clk 0:00:07]}  Rbb2 {[%clk 0:00:09]} 43. Rf1 {[%clk 0:00:08]}  Ra2 {[%clk 0:00:09]} 44. Nf3 {[%clk 0:00:09]}  Rdb2 {[%clk 0:00:09]} 45. Kg1 {[%clk 0:00:09]}  f6 {[%clk 0:00:09]} 46. Kg2 {[%clk 0:00:10]}  Kh6 {[%clk 0:00:09]} 47. Nd4 {[%clk 0:00:10]}  Rd2 {[%clk 0:00:08]} 48. Nf3 {[%clk 0:00:10]}  Rdb2 {[%clk 0:00:07]} 49. Kg1 {[%clk 0:00:10]}  g5 {[%clk 0:00:08]} 50. hxg5+ {[%clk 0:00:11]}  fxg5 {[%clk 0:00:09]} 51. Kg2 {[%clk 0:00:11]}  Kg6 {[%clk 0:00:08]} 52. Ne5+ {[%clk 0:00:11]}  Kf5 {[%clk 0:00:08]} 53. Nd3 {[%clk 0:00:12]}  Rd2 {[%clk 0:00:08]} 54. Nb4 {[%clk 0:00:13]}  Rab2 {[%clk 0:00:08]} 55. Nc6 {[%clk 0:00:13]}  h4 {[%clk 0:00:05]} 56. gxh4 {[%clk 0:00:13]}  gxh4 {[%clk 0:00:06]} 57. Kf3 {[%clk 0:00:12]}  Kg5 {[%clk 0:00:05]} 58. Nd4 {[%clk 0:00:12]}  Kh5 {[%clk 0:00:04]} 59. Ne6 {[%clk 0:00:13]}  Rd6 {[%clk 0:00:04]} 60. Nf4+ {[%clk 0:00:14]}  Kh6 {[%clk 0:00:04]} 61. Rh1 {[%clk 0:00:14]}  Kg5 {[%clk 0:00:04]} 62. Rg1+ {[%clk 0:00:14]}  Kh6 {[%clk 0:00:04]} 63. Rg4 {[%clk 0:00:15]}  Rdd2 {[%clk 0:00:03]} 64. Rxh4+ {[%clk 0:00:15]}  Kg7 {[%clk 0:00:04]} 65. Rh2 {[%clk 0:00:16]}  Rdc2 {[%clk 0:00:04]} 66. Nd3 {[%clk 0:00:16]}  Ra2 {[%clk 0:00:04]} 67. Ke4 {[%clk 0:00:16]}  Ra1 {[%clk 0:00:04]} 68. Rh3 {[%clk 0:00:13]}  Ra4+ {[%clk 0:00:04]} 69. Kf3 {[%clk 0:00:13]}  Rc3 {[%clk 0:00:04]} 70. Rg3+ {[%clk 0:00:14]}  Kf8 {[%clk 0:00:04]} 71. Nf4 {[%clk 0:00:14]}  Kf7 {[%clk 0:00:04]} 72. Kg4 {[%clk 0:00:13]}  Rc8 {[%clk 0:00:03]} 73. Rf3 {[%clk 0:00:14]}  Rg8+ {[%clk 0:00:03]} 74. Kf5 {[%clk 0:00:15]}  Ra5+ {[%clk 0:00:03]} 75. Ke4 {[%clk 0:00:15]}  Ke7 {[%clk 0:00:03]} 76. Nd5+ {[%clk 0:00:15]}  Kd6 {[%clk 0:00:03]} 77. Rf6+ {[%clk 0:00:16]}  Kc5 {[%clk 0:00:03]} 78. Nf4 {[%clk 0:00:14]}  Re8+ {[%clk 0:00:03]} 79. Kf3 {[%clk 0:00:14]}  Ra2 {[%clk 0:00:03]} 80. Rf5+ {[%clk 0:00:14]}  Kc6 {[%clk 0:00:03]} 81. Rf6+ {[%clk 0:00:14]}  Kc5 {[%clk 0:00:04]} 82. Ne2 {[%clk 0:00:14]}  Rh8 {[%clk 0:00:03]} 83. Nd4 {[%clk 0:00:13]}  Rh3+ {[%clk 0:00:02]} 84. Kg4 {[%clk 0:00:13]}  Rh2 {[%clk 0:00:02]} 85. f4 {[%clk 0:00:13]}  Rhg2+ {[%clk 0:00:02]} 86. Kf5 {[%clk 0:00:13]}  Rad2 {[%clk 0:00:02]} 87. Ke4 {[%clk 0:00:13]}  Rd1 {[%clk 0:00:02]} 88. Rc6+ {[%clk 0:00:14]}  Kb4 {[%clk 0:00:02]} 89. Rc8 {[%clk 0:00:13]}  Ka5 {[%clk 0:00:02]} 90. Kd5 {[%clk 0:00:12]}  Kb6 {[%clk 0:00:03]} 91. Rc6+ {[%clk 0:00:12]}  Kb7 {[%clk 0:00:03]} 92. Rc3 {[%clk 0:00:13]}  Rg8 {[%clk 0:00:02]} 93. f5 {[%clk 0:00:13]}  Rd8+ {[%clk 0:00:02]} 94. Ke5 {[%clk 0:00:14]}  Re8+ {[%clk 0:00:02]} 95. Kf6 {[%clk 0:00:13]}  Rf8+ {[%clk 0:00:02]} 96. Ke7 {[%clk 0:00:13]}  Rxd4 {[%clk 0:00:01]} 97. Kxf8 {[%clk 0:00:11]}  Re4 {[%clk 0:00:01]} 1-0


[Site "https://www.chess.com"]

[Event "Titled Tuesday Blitz June 20 Early 2023"]
[White "Manukian, Artak"]
[Black "Domingo Nunez, Ruben"]
[WhiteFideId "13301373"]
[BlackFideId "22245570"]
[WhiteElo "2130"]
[BlackElo "2404"]
[Result "1-0"]
[Round "9"]
[TimeControl "180+2"]
[Date "2023.06.20"]
[WhiteClock "0:00:12"]
[BlackClock "0:00:00"]
[Board "105"]

1. e4 {[%clk 0:02:57]}  g6 {[%clk 0:02:19]} 2. d4 {[%clk 0:02:47]}  Bg7 {[%clk 0:02:20]} 3. c4 {[%clk 0:02:44]}  d6 {[%clk 0:02:14]} 4. Nc3 {[%clk 0:02:45]}  Nd7 {[%clk 0:02:14]} 5. Bg5 {[%clk 0:02:44]}  h6 {[%clk 0:02:09]} 6. Be3 {[%clk 0:02:43]}  e5 {[%clk 0:02:09]} 7. d5 {[%clk 0:02:43]}  a5 {[%clk 0:02:09]} 8. g4 {[%clk 0:02:42]}  Bf6 {[%clk 0:02:08]} 9. Qd2 {[%clk 0:02:39]}  Bg5 {[%clk 0:02:08]} 10. Bd3 {[%clk 0:02:39]}  Bxe3 {[%clk 0:02:08]} 11. Qxe3 {[%clk 0:02:35]}  Nc5 {[%clk 0:02:09]} 12. Bc2 {[%clk 0:02:35]}  Qg5 {[%clk 0:02:09]} 13. h3 {[%clk 0:02:26]}  Bd7 {[%clk 0:01:44]} 14. Nf3 {[%clk 0:02:14]}  Qf6 {[%clk 0:01:44]} 15. Nd2 {[%clk 0:02:14]}  Ne7 {[%clk 0:01:22]} 16. O-O-O {[%clk 0:02:12]}  g5 {[%clk 0:01:20]} 17. Nb3 {[%clk 0:02:07]}  b6 {[%clk 0:01:17]} 18. Nxc5 {[%clk 0:02:06]}  bxc5 {[%clk 0:01:18]} 19. Ba4 {[%clk 0:02:06]}  Bxa4 {[%clk 0:01:12]} 20. Nxa4 {[%clk 0:02:07]}  h5 {[%clk 0:01:12]} 21. f3 {[%clk 0:02:01]}  Qf4 {[%clk 0:01:03]} 22. Kd2 {[%clk 0:02:00]}  Kd7 {[%clk 0:01:00]} 23. Nc3 {[%clk 0:01:59]}  Ng6 {[%clk 0:00:58]} 24. Ne2 {[%clk 0:01:56]}  Qf6 {[%clk 0:00:57]} 25. Ng3 {[%clk 0:01:51]}  h4 {[%clk 0:00:57]} 26. Nh5 {[%clk 0:01:42]}  Qe7 {[%clk 0:00:55]} 27. Rb1 {[%clk 0:01:40]}  Rhb8 {[%clk 0:00:46]} 28. b3 {[%clk 0:01:30]}  Rb4 {[%clk 0:00:43]} 29. a3 {[%clk 0:01:19]}  Rb6 {[%clk 0:00:43]} 30. Qc3 {[%clk 0:01:16]}  Qd8 {[%clk 0:00:34]} 31. Kc2 {[%clk 0:01:15]}  Ke7 {[%clk 0:00:27]} 32. Rb2 {[%clk 0:01:12]}  f6 {[%clk 0:00:25]} 33. Rhb1 {[%clk 0:01:08]}  Kf7 {[%clk 0:00:18]} 34. b4 {[%clk 0:01:08]}  axb4 {[%clk 0:00:19]} 35. axb4 {[%clk 0:01:08]}  cxb4 {[%clk 0:00:19]} 36. Rxb4 {[%clk 0:01:08]}  Ra2+ {[%clk 0:00:14]} 37. R1b2 {[%clk 0:01:07]}  Rxb4 {[%clk 0:00:13]} 38. Qxb4 {[%clk 0:01:07]}  Rxb2+ {[%clk 0:00:14]} 39. Kxb2 {[%clk 0:01:06]}  Qa8 {[%clk 0:00:11]} 40. c5 {[%clk 0:01:03]}  Qa6 {[%clk 0:00:10]} 41. cxd6 {[%clk 0:01:00]}  cxd6 {[%clk 0:00:11]} 42. Kb3 {[%clk 0:00:45]}  Qd3+ {[%clk 0:00:10]} 43. Qc3 {[%clk 0:00:45]}  Qb5+ {[%clk 0:00:11]} 44. Qb4 {[%clk 0:00:44]}  Qd3+ {[%clk 0:00:10]} 45. Qc3 {[%clk 0:00:44]}  Qd1+ {[%clk 0:00:09]} 46. Kb4 {[%clk 0:00:42]}  Qb1+ {[%clk 0:00:07]} 47. Ka5 {[%clk 0:00:42]}  Qb7 {[%clk 0:00:06]} 48. Qc6 {[%clk 0:00:40]}  Qa7+ {[%clk 0:00:06]} 49. Kb5 {[%clk 0:00:40]}  Qb8+ {[%clk 0:00:02]} 50. Ka6 {[%clk 0:00:38]}  Ne7 {[%clk 0:00:01]} 51. Qd7 {[%clk 0:00:38]}  Qa8+ {[%clk 0:00:01]} 52. Kb6 {[%clk 0:00:35]}  Qb8+ {[%clk 0:00:02]} 53. Qb7 {[%clk 0:00:31]}  Qd8+ {[%clk 0:00:01]} 54. Qc7 {[%clk 0:00:28]}  Qa8 {[%clk 0:00:01]} 55. Ng7 {[%clk 0:00:16]}  Qc8 {[%clk 0:00:00]} 56. Ne6 {[%clk 0:00:12]} 1-0


[Site "https://www.chess.com"]

[Event "Titled Tuesday Blitz June 20 Early 2023"]
[White "Melikhov, Evgeny V."]
[Black "Leenhouts, Koen"]
[WhiteFideId "4122046"]
[BlackFideId "1008439"]
[WhiteElo "2158"]
[BlackElo "2409"]
[Result "0-1"]
[Round "9"]
[TimeControl "180+2"]
[Date "2023.06.20"]
[WhiteClock "0:00:02"]
[BlackClock "0:00:08"]
[Board "111"]

1. d4 {[%clk 0:03:00]}  Nf6 {[%clk 0:02:14]} 2. c4 {[%clk 0:02:59]}  g6 {[%clk 0:02:15]} 3. Nc3 {[%clk 0:02:58]}  d5 {[%clk 0:02:16]} 4. Nf3 {[%clk 0:02:56]}  Bg7 {[%clk 0:02:15]} 5. e3 {[%clk 0:02:56]}  O-O {[%clk 0:02:14]} 6. Be2 {[%clk 0:02:57]}  c6 {[%clk 0:02:14]} 7. O-O {[%clk 0:02:56]}  Bg4 {[%clk 0:02:14]} 8. cxd5 {[%clk 0:02:56]}  cxd5 {[%clk 0:02:13]} 9. h3 {[%clk 0:02:56]}  Bxf3 {[%clk 0:02:13]} 10. Bxf3 {[%clk 0:02:57]}  Nc6 {[%clk 0:02:14]} 11. Bd2 {[%clk 0:02:56]}  Rc8 {[%clk 0:02:11]} 12. Rc1 {[%clk 0:02:56]}  e6 {[%clk 0:02:09]} 13. Qb3 {[%clk 0:02:52]}  Na5 {[%clk 0:02:05]} 14. Qa4 {[%clk 0:02:39]}  Nc4 {[%clk 0:02:02]} 15. Rc2 {[%clk 0:02:39]}  a6 {[%clk 0:01:57]} 16. Rfc1 {[%clk 0:02:36]}  Nxd2 {[%clk 0:01:39]} 17. Rxd2 {[%clk 0:02:35]}  Rc6 {[%clk 0:01:39]} 18. Rdc2 {[%clk 0:02:31]}  Qc7 {[%clk 0:01:39]} 19. Ne2 {[%clk 0:02:10]}  Rxc2 {[%clk 0:01:28]} 20. Qxc2 {[%clk 0:02:10]}  Qb6 {[%clk 0:01:29]} 21. a3 {[%clk 0:02:03]}  Ne8 {[%clk 0:01:24]} 22. b4 {[%clk 0:01:56]}  Nd6 {[%clk 0:01:24]} 23. Qc5 {[%clk 0:01:53]}  Qd8 {[%clk 0:01:19]} 24. Nf4 {[%clk 0:01:48]}  Nc4 {[%clk 0:01:06]} 25. a4 {[%clk 0:01:27]}  Qd7 {[%clk 0:01:02]} 26. Nxd5 {[%clk 0:01:16]}  exd5 {[%clk 0:00:58]} 27. Qxd5 {[%clk 0:01:10]}  Qxd5 {[%clk 0:00:50]} 28. Bxd5 {[%clk 0:01:10]}  Nd6 {[%clk 0:00:41]} 29. Rc7 {[%clk 0:01:08]}  Rd8 {[%clk 0:00:30]} 30. Bxb7 {[%clk 0:00:56]}  Rb8 {[%clk 0:00:29]} 31. Bxa6 {[%clk 0:00:54]}  Rxb4 {[%clk 0:00:30]} 32. Bb5 {[%clk 0:00:43]}  Nxb5 {[%clk 0:00:29]} 33. axb5 {[%clk 0:00:39]}  Rxb5 {[%clk 0:00:28]} 34. g3 {[%clk 0:00:38]}  Bf8 {[%clk 0:00:28]} 35. h4 {[%clk 0:00:36]}  Rd5 {[%clk 0:00:25]} 36. Kg2 {[%clk 0:00:35]}  Kg7 {[%clk 0:00:24]} 37. Kf3 {[%clk 0:00:34]}  Rd6 {[%clk 0:00:24]} 38. Rc2 {[%clk 0:00:34]}  Rf6+ {[%clk 0:00:24]} 39. Ke2 {[%clk 0:00:33]}  Re6 {[%clk 0:00:20]} 40. Ra2 {[%clk 0:00:32]}  Re7 {[%clk 0:00:21]} 41. Ra6 {[%clk 0:00:32]}  Rd7 {[%clk 0:00:21]} 42. Ra2 {[%clk 0:00:32]}  Rd6 {[%clk 0:00:21]} 43. Kf3 {[%clk 0:00:32]}  Kf6 {[%clk 0:00:21]} 44. Rb2 {[%clk 0:00:30]}  Ke6 {[%clk 0:00:22]} 45. Rc2 {[%clk 0:00:30]}  f6 {[%clk 0:00:21]} 46. Ke4 {[%clk 0:00:29]}  Rd7 {[%clk 0:00:20]} 47. Rc6+ {[%clk 0:00:28]}  Bd6 {[%clk 0:00:20]} 48. Ra6 {[%clk 0:00:27]}  Ke7 {[%clk 0:00:20]} 49. Kf3 {[%clk 0:00:27]}  Kf7 {[%clk 0:00:19]} 50. Ra2 {[%clk 0:00:26]}  Be7 {[%clk 0:00:20]} 51. Rc2 {[%clk 0:00:26]}  Rb7 {[%clk 0:00:20]} 52. Ra2 {[%clk 0:00:25]}  Rb3 {[%clk 0:00:20]} 53. Rc2 {[%clk 0:00:25]}  Ra3 {[%clk 0:00:21]} 54. Rb2 {[%clk 0:00:25]}  Rc3 {[%clk 0:00:21]} 55. Ra2 {[%clk 0:00:25]}  Ke6 {[%clk 0:00:20]} 56. Rb2 {[%clk 0:00:24]}  Bd6 {[%clk 0:00:20]} 57. Ra2 {[%clk 0:00:24]}  Rc1 {[%clk 0:00:20]} 58. Rb2 {[%clk 0:00:23]}  Kd5 {[%clk 0:00:20]} 59. Rb5+ {[%clk 0:00:22]}  Kc6 {[%clk 0:00:19]} 60. Rb2 {[%clk 0:00:22]}  Rc3 {[%clk 0:00:18]} 61. Ra2 {[%clk 0:00:21]}  Ra3 {[%clk 0:00:18]} 62. Rc2+ {[%clk 0:00:21]}  Kd5 {[%clk 0:00:18]} 63. Rc8 {[%clk 0:00:20]}  Ra2 {[%clk 0:00:17]} 64. Rh8 {[%clk 0:00:20]}  Bb4 {[%clk 0:00:17]} 65. Rxh7 {[%clk 0:00:20]}  Be1 {[%clk 0:00:17]} 66. Rh6 {[%clk 0:00:19]}  Rxf2+ {[%clk 0:00:17]} 67. Kg4 {[%clk 0:00:19]}  Ke4 {[%clk 0:00:17]} 68. Rxg6 {[%clk 0:00:17]}  Rf3 {[%clk 0:00:17]} 69. Kh3 {[%clk 0:00:15]}  Kxe3 {[%clk 0:00:15]} 70. h5 {[%clk 0:00:16]}  f5 {[%clk 0:00:15]} 71. h6 {[%clk 0:00:14]}  Bc3 {[%clk 0:00:15]} 72. Rd6 {[%clk 0:00:11]}  Bxd4 {[%clk 0:00:13]} 73. Rxd4 {[%clk 0:00:10]}  Rf1 {[%clk 0:00:08]} 74. Rh4 {[%clk 0:00:07]}  f4 {[%clk 0:00:03]} 75. gxf4 {[%clk 0:00:05]}  Kf3 {[%clk 0:00:03]} 76. Kh2 {[%clk 0:00:05]}  Rf2+ {[%clk 0:00:03]} 77. Kh1 {[%clk 0:00:04]}  Kg3 {[%clk 0:00:02]} 78. Rg4+ {[%clk 0:00:02]}  Kxg4 {[%clk 0:00:02]} 79. h7 {[%clk 0:00:02]}  Kg3 {[%clk 0:00:03]} 80. Kg1 {[%clk 0:00:02]}  Rg2+ {[%clk 0:00:03]} 81. Kf1 {[%clk 0:00:02]}  Rh2 {[%clk 0:00:03]} 82. f5 {[%clk 0:00:02]}  Rxh7 {[%clk 0:00:04]} 83. Ke2 {[%clk 0:00:03]}  Rf7 {[%clk 0:00:05]} 84. Ke3 {[%clk 0:00:03]}  Rf6 {[%clk 0:00:06]} 85. Ke4 {[%clk 0:00:04]}  Kg4 {[%clk 0:00:06]} 86. Ke5 {[%clk 0:00:04]}  Rxf5+ {[%clk 0:00:07]} 87. Ke6 {[%clk 0:00:02]}  Rf4 {[%clk 0:00:08]} 0-1


[Site "https://www.chess.com"]

[Event "Titled Tuesday Blitz June 20 Early 2023"]
[White "Petrova, Irina"]
[Black "De La Villa Garcia, Jesus Maria"]
[WhiteFideId "14124122"]
[BlackFideId "2200040"]
[WhiteElo "2084"]
[BlackElo "2524"]
[Result "0-1"]
[Round "9"]
[TimeControl "180+2"]
[Date "2023.06.20"]
[WhiteClock "0:00:40"]
[BlackClock "0:02:02"]
[Board "112"]

1. e4 {[%clk 0:02:56]}  c6 {[%clk 0:03:00]} 2. d4 {[%clk 0:02:54]}  d5 {[%clk 0:03:01]} 3. Nc3 {[%clk 0:02:52]}  dxe4 {[%clk 0:03:01]} 4. Nxe4 {[%clk 0:02:53]}  Nf6 {[%clk 0:03:02]} 5. Nxf6+ {[%clk 0:02:52]}  exf6 {[%clk 0:03:02]} 6. Be3 {[%clk 0:02:51]}  Bd6 {[%clk 0:03:03]} 7. Bd3 {[%clk 0:02:46]}  O-O {[%clk 0:03:04]} 8. Ne2 {[%clk 0:02:44]}  Re8 {[%clk 0:03:04]} 9. Qd2 {[%clk 0:02:42]}  Nd7 {[%clk 0:03:05]} 10. O-O {[%clk 0:02:41]}  Nf8 {[%clk 0:03:04]} 11. Rfe1 {[%clk 0:02:39]}  Be6 {[%clk 0:03:02]} 12. Bf4 {[%clk 0:02:38]}  Ng6 {[%clk 0:03:01]} 13. Bxd6 {[%clk 0:02:37]}  Qxd6 {[%clk 0:03:02]} 14. c3 {[%clk 0:02:36]}  Rad8 {[%clk 0:03:02]} 15. Ng3 {[%clk 0:02:31]}  Nf4 {[%clk 0:02:55]} 16. Rad1 {[%clk 0:02:24]}  Bxa2 {[%clk 0:02:45]} 17. Nf5 {[%clk 0:02:17]}  Qc7 {[%clk 0:02:43]} 18. Bc2 {[%clk 0:01:59]}  Bd5 {[%clk 0:02:37]} 19. f3 {[%clk 0:01:53]}  g6 {[%clk 0:02:36]} 20. Nh6+ {[%clk 0:01:51]}  Kg7 {[%clk 0:02:36]} 21. Ng4 {[%clk 0:01:52]}  h5 {[%clk 0:02:34]} 22. Nf2 {[%clk 0:01:46]}  b5 {[%clk 0:02:27]} 23. Ne4 {[%clk 0:01:30]}  a5 {[%clk 0:02:24]} 24. Nc5 {[%clk 0:01:29]}  a4 {[%clk 0:02:20]} 25. Kf2 {[%clk 0:01:20]}  Nh3+ {[%clk 0:02:10]} 26. gxh3 {[%clk 0:00:46]}  Qxh2+ {[%clk 0:02:08]} 27. Kf1 {[%clk 0:00:46]}  Qh1+ {[%clk 0:02:06]} 28. Kf2 {[%clk 0:00:46]}  Qxf3+ {[%clk 0:02:05]} 29. Kg1 {[%clk 0:00:46]}  Qg3+ {[%clk 0:02:02]} 30. Kf1 {[%clk 0:00:43]}  Qxh3+ {[%clk 0:02:02]} 31. Kg1 {[%clk 0:00:41]}  Qh1+ {[%clk 0:02:02]} 32. Kf2 {[%clk 0:00:40]}  Qg2# {[%clk 0:02:02]} 0-1


[Site "https://www.chess.com"]